fUSD/lending_fUSD_20251120
["ID","MTS","AMOUNT","RATE_DAILY","PERIOD"]
[394529562,1763669594367,500.0,0.00042005,50]
[394529563,1763669594411,250.0,0.00042005,50]
[394529564,1763669594635,500.0,0.00042005,50]
[394529565,1763669594754,500.0,0.00042005,50]
[394529566,1763669595036,250.0,0.00042005,50]
[394529567,1763669595113,500.0,0.00042005,50]
[394529568,1763669595329,500.0,0.00042005,50]
[394529569,1763669595370,500.0,0.00042005,50]
[394529570,1763669595721,500.0,0.00042005,50]
[394529571,1763669595894,500.0,0.00042005,50]
[394529572,1763669595969,500.0,0.00042005,50]
[394529573,1763669596306,250.0,0.00042005,50]
[394529574,1763669596350,500.0,0.00042005,50]
[394529575,1763669596497,500.0,0.00042005,50]
[394529576,1763669596574,500.0,0.00042005,50]
[394529577,1763669596920,500.0,0.00042005,50]
[394529578,1763669596962,250.0,0.00042005,50]
[394529579,1763669597115,500.0,0.00042005,50]
[394529580,1763669597169,500.0,0.00042005,50]
[394529581,1763669597472,151.0,0.00042005,50]
[394529582,1763669597554,500.0,0.00042005,50]
[394529583,1763669597595,250.0,0.00042005,50]
[394529584,1763669597635,151.0,0.00042005,50]
[394529585,1763669597773,500.0,0.00042005,50]
[394529586,1763669597816,500.0,0.00042005,50]
[394529587,1763669597969,151.0,0.00042005,50]
[394529588,1763669598135,500.0,0.00042005,50]
[394529589,1763669598218,250.0,0.00042005,50]
[394529590,1763669598280,151.0,0.00042005,50]
[394529591,1763669598381,500.0,0.00042005,50]
[394529592,1763669598428,500.0,0.00042005,50]
[394529593,1763669598591,414.0,0.00042005,50]
[394529594,1763669598858,250.0,0.00042005,50]
[394529595,1763669599048,500.0,0.00042005,50]
[394529596,1763669599204,429.318,0.00042005,50]
[394529597,1763669599357,500.0,0.00042005,50]
[394529598,1763669599458,250.0,0.00042005,50]
[394529599,1763669599652,500.0,0.00042005,50]
[394529600,1763669599816,445.202766,0.00042005,50]
[394529601,1763669599953,500.0,0.00042005,50]
[394529602,1763669600078,250.0,0.00042005,50]
[394529603,1763669600469,461.67526834,0.00042005,50]
[394529604,1763669600705,250.0,0.00042005,50]
[394529605,1763669601085,478.75725327,0.00042005,50]
[394529606,1763669601128,151.0,0.00042005,50]
[394529607,1763669601695,496.47127164,0.00042005,50]
[394529608,1763669601737,151.0,0.00042005,50]
[394529609,1763669601852,250.0,0.00042005,50]
[394529610,1763669602330,514.84070869,0.00042005,50]
[394529611,1763669602373,151.0,0.00042005,50]
[394529612,1763669602948,533.88981491,0.00042005,50]
[394529613,1763669603075,500.0,0.00042005,50]
[394529614,1763669603679,500.0,0.00042005,50]
[394529615,1763669604297,151.0,0.00042005,50]
[394529616,1763669604344,500.0,0.00042005,50]
[394529617,1763669604918,500.0,0.00042005,50]
[394529618,1763669605020,151.0,0.00042005,50]
[394529619,1763669605514,500.0,0.00042005,50]
[394529620,1763669605633,151.0,0.00042005,50]
[394529621,1763669606138,500.0,0.00042005,50]
[394529622,1763669606318,151.0,0.00042005,50]
[394529623,1763669606744,500.0,0.00042005,50]
[394529624,1763669606999,151.0,0.00042005,50]
[394529625,1763669607636,500.0,0.00042005,50]
[394529626,1763669607686,151.0,0.00042005,50]
[394529627,1763669608177,500.0,0.00042005,50]
[394529628,1763669608292,151.0,0.00042005,50]
[394529629,1763669608631,426.43191686,0.00035616,120]
[394529630,1763669608955,151.0,0.00042005,50]
[394529631,1763669609607,151.0,0.00042005,50]
[394529632,1763669610586,151.0,0.00042005,50]
[394529633,1763669611079,151.0,0.00042005,50]
[394529634,1763669611710,151.0,0.00042005,50]
[394529635,1763669612344,151.0,0.00042005,50]
[394529636,1763669612954,151.0,0.00042005,50]
[394529637,1763669613596,151.0,0.00042005,50]
[394529638,1763669614198,151.0,0.00042005,50]
[394529639,1763669614807,151.0,0.00042005,50]
[394529640,1763669615140,151.0,0.00042005,50]
[394529641,1763669615188,151.0,0.00042005,50]
[394529642,1763669615440,151.0,0.00042005,50]
[394529643,1763669615482,151.0,0.00042005,50]
[394529644,1763669615724,151.0,0.00042005,50]
[394529645,1763669616003,151.0,0.00042005,50]
[394529646,1763669622202,298.8035844,0.00042005,50]
[394529647,1763669649873,201.15908671,0.00042005,50]
[394529648,1763669664032,255.0,0.00035616,120]
[394529649,1763669715262,261.9894627,0.00042005,50]
[394529650,1763669739131,283.4544093,0.00042005,120]
[394529686,1763669828153,200.0,0.00042005,120]
[394530154,1763669859511,1376.0,0.00035616,120]
[394530212,1763669896708,924.63,0.00013699,2]
[394530213,1763669957655,226.5,0.00013699,2]
[394530214,1763669996460,400.03993325,0.00042005,120]
[394530215,1763670003242,161.86,0.00042005,120]
[394530216,1763670093636,2129.408,0.00015975,2]
[394530217,1763670101553,237.29999627,0.000356,120]
[394530219,1763670228943,426.43191686,0.00035616,120]
[394530220,1763670259398,558.11376503,0.00015975,2]
[394530221,1763670259779,226.5,0.00015975,2]
[394530222,1763670260709,279.05688252,0.00015975,2]
[394530223,1763670293624,1008.55740202,0.00016096,2]
[394530224,1763670420154,607.18,0.00015999,2]
[394530229,1763670487803,2049.88395043,0.0001439,2]
[394530230,1763670487825,5613.61652952,0.0001439,2]
[394530232,1763670501003,4386.39347048,0.00015,2]
[394530233,1763670501025,5784.16050792,0.00015,2]
[394530235,1763670507431,30863.12084941,0.00032,120]
[394530247,1763670523381,2699.15,0.00042005,120]
[394530251,1763670543912,2290.94,0.00016119,2]
[394530252,1763670545963,398.11212609,0.00014695,2]
[394530253,1763670546471,778.80255851,0.00014695,2]
[394530254,1763670559027,279.05688252,0.00016119,2]
[394530256,1763670597378,468.93792496,0.00015761,2]
[394530257,1763670597399,2282.06207504,0.00015761,2]
[394530271,1763670631398,-150.0,0.000162,2]
[394530272,1763670631407,-150.0,0.000162,2]
[394530273,1763670631416,-150.0,0.000162,2]
[394530274,1763670631425,-427.88000038,0.00016201,2]
[394530275,1763670631435,-2869.11999962,0.00016201,2]
[394530276,1763670631444,-1200.0,0.00016247,2]
[394530277,1763670631453,-300.0,0.00016247,2]
[394530278,1763670631462,-150.0,0.00016255,2]
[394530280,1763670631473,-526.66,0.00016291,3]
[394530282,1763670631482,-263.33,0.00016291,3]
[394530283,1763670631491,-790.0,0.00016291,3]
[394530284,1763670631500,-500.0,0.000163,2]
[394530285,1763670631509,-202.765094,0.000163,2]
[394530286,1763670631519,-500.0,0.000163,2]
[394530287,1763670631690,-500.0,0.000163,2]
[394530288,1763670631700,-500.0,0.000163,2]
[394530289,1763670631709,-500.0,0.000163,2]
[394530290,1763670631721,-400.0,0.000163,2]
[394530291,1763670631731,-500.0,0.000163,2]
[394530292,1763670631740,-211.26,0.000163,2]
[394530293,1763670631750,-500.0,0.000163,2]
[394530294,1763670631760,-500.0,0.000163,2]
[394530295,1763670631770,-150.0,0.00016349,2]
[394530296,1763670631780,-166.66,0.00016384,2]
[394530298,1763670631791,-1630.8453,0.00016411,2]
[394530299,1763670631801,-1481.31247797,0.00016438,2]
[394530300,1763670631813,-6663.60752203,0.00016438,2]
[394530301,1763670631823,-5668.06,0.00016453,2]
[394530302,1763670631833,-1086.63124531,0.00016514,2]
[394530303,1763670631843,-1008.55740202,0.00016532,2]
[394530304,1763670631853,-211.26,0.00016574,2]
[394530305,1763670631864,-226.79,0.00016662,2]
[394530306,1763670631874,-191.95,0.00016712,2]
[394530307,1763670631883,-166.66,0.00016729,2]
[394530308,1763670631892,-211.26,0.00016848,2]
[394530309,1763670631901,-6719.87991472,0.000169,2]
[394530310,1763670631913,-832.22856812,0.000169,2]
[394530311,1763670631924,-286.98,0.000169,2]
[394530312,1763670631939,-8694.592257,0.000169,2]
[394530313,1763670631950,-1378.190429,0.000169,2]
[394530332,1763670637441,-550.8,0.000169,2]
[394530337,1763670637498,-383.1685911,0.000169,2]
[394530341,1763670637560,-743.00517263,0.000169,2]
[394530342,1763670637571,-5964.09978486,0.000169,2]
[394530346,1763670639550,-567.73220679,0.000169,2]
[394530347,1763670639563,-3488.00794361,0.000169,2]
[394530348,1763670639575,-1605.04397606,0.000169,2]
[394530349,1763670639587,-251.37,0.000169,2]
[394530350,1763670639605,-535.2428432,0.000169,2]
[394530355,1763670639714,-4804.24640369,0.000169,2]
[394530360,1763670639773,-2050.77884625,0.000169,2]
[394530361,1763670639785,-2716.894511,0.000169,2]
[394530363,1763670639796,-1269.46670267,0.000169,2]
[394530365,1763670639807,-309.29286908,0.000169,2]
[394530368,1763670639830,-1341.0,0.000169,2]
[394530369,1763670639841,-6865.63692011,0.000169,2]
[394530371,1763670639852,-817.31434984,0.000169,2]
[394530373,1763670639863,-663.76693027,0.000169,2]
[394530419,1763670644084,-317.34695345,0.000169,2]
[394530420,1763670644195,-2065.3471377,0.000169,2]
[394530421,1763670644208,-1226.29309076,0.000169,2]
[394530422,1763670644253,-2040.28669856,0.000169,2]
[394530423,1763670644309,-2503.41454464,0.000169,2]
[394530425,1763670644319,-1079.82713361,0.00016904,2]
[394530431,1763670645615,-11203.34286639,0.00016904,2]
[394530432,1763670645625,-265.6603662,0.00016965,2]
[394530433,1763670645636,-500.0,0.00016973,2]
[394530434,1763670645645,-511.74376832,0.00016973,2]
[394530435,1763670645655,-163.06339515,0.00016974,2]
[394530436,1763670645664,-365.92599066,0.00016999,2]
[394530437,1763670645673,-257.3485348,0.00016999,2]
[394530438,1763670645682,-500.0,0.00016999,2]
[394530439,1763670645692,-500.0,0.00016999,2]
[394530440,1763670645701,-500.0,0.00016999,2]
[394530441,1763670645710,-500.0,0.00016999,2]
[394530442,1763670645719,-500.0,0.00016999,2]
[394530443,1763670645732,-500.0,0.00016999,2]
[394530444,1763670645742,-500.0,0.00016999,2]
[394530445,1763670645752,-500.0,0.00016999,2]
[394530446,1763670645761,-500.0,0.00016999,2]
[394530447,1763670645771,-500.0,0.00016999,2]
[394530448,1763670645780,-500.0,0.00016999,2]
[394530449,1763670645790,-500.0,0.00016999,2]
[394530450,1763670645802,-500.0,0.00016999,2]
[394530451,1763670645812,-500.0,0.00016999,2]
[394530452,1763670645822,-463.51871171,0.00016999,2]
[394530453,1763670645832,-500.0,0.00016999,2]
[394530454,1763670645841,-500.0,0.00016999,2]
[394530455,1763670645851,-500.0,0.00016999,2]
[394530456,1763670645860,-500.0,0.00016999,2]
[394530457,1763670645869,-500.0,0.00016999,2]
[394530458,1763670645879,-250.0,0.00016999,2]
[394530459,1763670645888,-500.0,0.00016999,2]
[394530460,1763670645894,-500.0,0.00016999,2]
[394530461,1763670645901,-500.0,0.00016999,2]
[394530462,1763670645907,-500.0,0.00016999,2]
[394530463,1763670645916,-635.60507044,0.00016999,2]
[394530464,1763670645926,-250.0,0.00017,2]
[394530465,1763670645935,-33534.58836832,0.00017,2]
[394530466,1763670645947,-29914.31463001,0.00017,2]
[394530467,1763670645959,-128297.82328241,0.00017,2]
[394530468,1763670645970,-4325.55,0.00017,2]
[394530469,1763670645984,-4727.28314105,0.00017,2]
[394530470,1763670645995,-1800.0,0.00017,2]
[394530523,1763670710582,1288.18,8.353e-05,2]
[394530524,1763670710786,1288.18,8.792e-05,2]
[394530525,1763670711020,1288.18,9.232e-05,2]
[394530526,1763670711257,1288.18,9.672e-05,2]
[394530527,1763670711469,1288.18,0.00010111,2]
[394530528,1763670711888,1277.04792496,0.00010551,2]
[394530529,1763670711913,11.13207504,0.00010551,2]
[394530530,1763670712134,1288.18,0.0001099,2]
[394530531,1763670712371,1288.18,0.0001143,2]
[394530532,1763670712638,1288.18,0.0001187,2]
[394530533,1763670712859,1288.18,0.00012309,2]
[394530534,1763670713093,1288.18,0.00012749,2]
[394530535,1763670713297,1288.18,0.00013188,2]
[394530536,1763670713529,1288.18,0.00013628,2]
[394530537,1763670713744,1288.18,0.00014068,2]
[394530538,1763670713958,1288.18,0.00014507,2]
[394530539,1763670714216,1288.18,0.00014947,2]
[394530540,1763670714431,1288.18,0.00015387,2]
[394530541,1763670714640,1288.18,0.00015826,2]
[394530550,1763670737700,30136.23,0.00042005,30]
[394530568,1763670854704,426.43191686,0.00035616,120]
[394530586,1763670905795,151.0,0.00042006,50]
[394530587,1763670906097,151.0,0.00042006,50]
[394530588,1763670910724,151.0,0.00042006,50]
[394530589,1763670911047,151.0,0.00042006,50]
[394530590,1763670914037,151.0,0.00042006,50]
[394530591,1763670914317,151.0,0.00042006,50]
[394530592,1763670914736,151.0,0.00042006,50]
[394530593,1763670915043,199.59726,0.00042006,50]
[394530594,1763670919558,151.0,0.00042006,50]
[394530595,1763670920431,151.0,0.00042006,50]
[394530596,1763670920730,222.671568,0.00042006,50]
[394530597,1763670921082,151.0,0.00042006,50]
[394530598,1763670921196,151.0,0.00042006,50]
[394530599,1763670921485,151.0,0.00042006,50]
[394530600,1763670921809,151.0,0.00042006,50]
[394530601,1763670922081,151.0,0.00042006,50]
[394530602,1763670922406,151.0,0.00042006,50]
[394530603,1763670922729,151.0,0.00042006,50]
[394530604,1763670923056,151.0,0.00042006,50]
[394530605,1763670923360,151.0,0.00042006,50]
[394530606,1763670923676,151.0,0.00042006,50]
[394530607,1763670923958,187.144112,0.00042006,50]
[394530612,1763670926034,151.0,0.00042006,50]
[394530613,1763670926318,151.0,0.00042006,50]
[394530614,1763670926390,151.0,0.00042006,50]
[394530630,1763670932081,151.0,0.00042006,50]
[394530632,1763670932386,151.0,0.00042006,50]
[394530638,1763670934831,151.0,0.00042006,50]
[394530639,1763670935136,151.0,0.00042006,50]
[394530640,1763670935428,151.0,0.00042006,50]
[394530641,1763670935740,151.0,0.00042006,50]
[394530642,1763670937489,151.0,0.00042006,50]
[394530643,1763670937819,151.0,0.00042006,50]
[394530644,1763670938101,151.0,0.00042006,50]
[394530684,1763670959796,200.0,0.00016159,2]
[394530694,1763670964950,151.0,0.00042006,50]
[394530695,1763670965255,151.0,0.00042006,50]
[394530779,1763670993594,151.0,0.00042006,50]
[394530781,1763670993886,151.0,0.00042006,50]
[394530782,1763670994177,172.654489,0.00042006,50]
[394530790,1763670996883,151.0,0.00042006,50]
[394530793,1763670997380,151.0,0.00042006,50]
[394530795,1763670997582,151.0,0.00042006,50]
[394530797,1763670997883,151.0,0.00042006,50]
[394530807,1763671015329,175.26,0.00012972,2]
[394530831,1763671026521,151.0,0.00042006,50]
[394530833,1763671026816,151.0,0.00042006,50]
[394530840,1763671039296,151.0,0.00042006,50]
[394530841,1763671039612,151.0,0.00042006,50]
[394530859,1763671051550,465.0,0.00035616,120]
[394530891,1763671056718,151.0,0.00042006,30]
[394530893,1763671057029,151.0,0.00042006,30]
[394530895,1763671057319,151.0,0.00042006,30]
[394530897,1763671057625,151.0,0.00042006,30]
[394530899,1763671057941,151.0,0.00042006,30]
[394530900,1763671058233,151.0,0.00042006,30]
[394530901,1763671058522,151.0,0.00042006,30]
[394530902,1763671058832,151.0,0.00042006,30]
[394530904,1763671059144,151.0,0.00042006,30]
[394530906,1763671059225,151.0,0.00042006,50]
[394530907,1763671059441,151.0,0.00042006,30]
[394530909,1763671059515,151.0,0.00042006,50]
[394530910,1763671059739,151.0,0.00042006,30]
[394530912,1763671060034,151.0,0.00042006,30]
[394530916,1763671060830,151.0,0.00042006,30]
[394530917,1763671060919,151.0,0.00042006,30]
[394530919,1763671061217,151.0,0.00042006,30]
[394530921,1763671061552,151.0,0.00042006,30]
[394530923,1763671061852,151.0,0.00042006,30]
[394530925,1763671062151,151.0,0.00042006,30]
[394530927,1763671062468,198.489144,0.00042006,30]
[394530941,1763671085874,151.0,0.00042006,50]
[394530942,1763671086177,151.0,0.00042006,50]
[394530945,1763671091058,151.0,0.00042006,50]
[394530946,1763671098008,151.0,0.00042006,50]
[394530953,1763671100265,151.0,0.00042006,50]
[394530956,1763671100622,221.988808,0.00042006,50]
[394530966,1763671103571,151.0,0.00042006,50]
[394530967,1763671103836,151.0,0.00042006,50]
[394530968,1763671104451,151.0,0.00042006,50]
[394530969,1763671104755,151.0,0.00042006,50]
[394530970,1763671105035,220.525718,0.00042006,50]
[394530971,1763671107351,151.0,0.00042006,50]
[394530972,1763671107653,180.998021,0.00042006,50]
[394530974,1763671108814,151.0,0.00042006,50]
[394530976,1763671109103,151.0,0.00042006,50]
[394530977,1763671109384,151.0,0.00042006,50]
[394530979,1763671109725,151.0,0.00042006,50]
[394530981,1763671110010,151.0,0.00042006,50]
[394530984,1763671110512,151.0,0.00042006,50]
[394530985,1763671110594,159.474307,0.00042006,50]
[394530989,1763671111453,153.725871,0.00042006,50]
[394531034,1763671148011,151.0,0.00042006,50]
[394531036,1763671148292,151.0,0.00042006,50]
[394531050,1763671164032,151.0,0.00042005,50]
[394531052,1763671164322,151.0,0.00042005,50]
[394531054,1763671164615,151.0,0.00042005,50]
[394531056,1763671164901,151.0,0.00042005,50]
[394531057,1763671165191,151.0,0.00042005,50]
[394531060,1763671165504,151.0,0.00042005,50]
[394531062,1763671166084,151.0,0.00042005,50]
[394531063,1763671166169,151.0,0.00042005,50]
[394531065,1763671166473,151.0,0.00042005,50]
[394531067,1763671166778,151.0,0.00042005,50]
[394531069,1763671167074,151.0,0.00042005,50]
[394531072,1763671167367,151.0,0.00042005,50]
[394531079,1763671168396,267.369368,0.00042005,50]
[394531088,1763671169576,151.0,0.00042005,50]
[394531091,1763671169914,151.0,0.00042005,50]
[394531114,1763671186430,151.0,0.00042005,50]
[394531115,1763671186901,151.0,0.00042005,50]
[394531116,1763671187017,151.0,0.00042005,50]
[394531117,1763671187307,151.0,0.00042005,50]
[394531118,1763671187602,151.0,0.00042005,50]
[394531119,1763671187894,151.0,0.00042005,50]
[394531120,1763671188183,151.0,0.00042005,50]
[394531121,1763671188466,151.0,0.00042005,50]
[394531122,1763671188753,151.0,0.00042005,50]
[394531123,1763671189071,151.0,0.00042005,50]
[394531124,1763671189360,151.0,0.00042005,50]
[394531125,1763671189995,151.0,0.00042005,50]
[394531126,1763671190292,155.967864,0.00042005,50]
[394531170,1763671209291,500.0,0.00042005,50]
[394531240,1763671219129,151.0,0.00042005,50]
[394531245,1763671221170,151.0,0.00042005,50]
[394531247,1763671221465,151.0,0.00042005,50]
[394531285,1763671229284,151.0,0.00042005,50]
[394531287,1763671229628,151.0,0.00042005,50]
[394531299,1763671231337,151.0,0.00042005,50]
[394531303,1763671231637,151.0,0.00042005,50]
[394531306,1763671231948,191.749301,0.00042005,50]
[394531309,1763671232677,151.0,0.00042005,50]
[394531312,1763671232981,151.0,0.00042005,50]
[394531319,1763671233732,151.0,0.00042005,50]
[394531328,1763671235105,151.0,0.00042005,50]
[394531332,1763671235382,151.0,0.00042005,50]
[394531335,1763671235682,151.0,0.00042005,50]
[394531338,1763671235979,151.0,0.00042005,50]
[394531341,1763671236282,151.0,0.00042005,50]
[394531343,1763671236580,151.0,0.00042005,50]
[394531352,1763671247008,645.56633556,0.00035616,120]
[394531389,1763671266147,500.0,0.00042005,50]
[394531390,1763671266745,500.0,0.00042005,50]
[394531449,1763671326261,500.0,0.00042005,50]
[394531450,1763671326857,500.0,0.00042005,50]
[394531451,1763671335949,-1200.0,0.00016255,2]
[394531452,1763671335973,-1200.0,0.00016256,2]
[394531453,1763671335998,-300.0,0.00016256,2]
[394531454,1763671336022,-300.0,0.00016256,2]
[394531455,1763671336046,-300.0,0.00016256,2]
[394531456,1763671336069,-4341.38,0.00016257,2]
[394531457,1763671336094,-4564.62,0.00016257,2]
[394531537,1763671413777,296.65,0.00016159,2]
[394531543,1763671446482,500.0,0.00042005,50]
[394531544,1763671447204,500.0,0.00042005,50]
[394531545,1763671447952,151.0,0.00042005,50]
[394531546,1763671448247,151.0,0.00042005,50]
[394531547,1763671448565,151.0,0.00042005,50]
[394531548,1763671449181,151.0,0.00042005,50]
[394531549,1763671449483,151.0,0.00042005,50]
[394531561,1763671462488,151.0,0.00042005,50]
[394531562,1763671462776,151.0,0.00042005,50]
[394531572,1763671465516,151.0,0.00042005,50]
[394531573,1763671465663,151.0,0.00042005,50]
[394531575,1763671465975,151.0,0.00042005,50]
[394531577,1763671466298,297.369946,0.00042005,50]
[394531579,1763671466877,151.0,0.00042005,50]
[394531594,1763671471430,151.0,0.00042005,50]
[394531596,1763671472119,151.0,0.00042005,50]
[394531597,1763671472447,151.0,0.00042005,50]
[394531598,1763671473697,250.380547,0.00042005,50]
[394531599,1763671474032,250.380547,0.00042005,50]
[394531600,1763671474332,250.380547,0.00042005,50]
[394531601,1763671475119,155.92961,0.00042005,50]
[394531602,1763671476373,250.380547,0.00042005,50]
[394531603,1763671477253,250.380547,0.00042005,50]
[394531604,1763671477556,250.380547,0.00042005,50]
[394531605,1763671477852,250.380547,0.00042005,50]
[394531606,1763671478200,250.380547,0.00042005,50]
[394531607,1763671478516,250.380547,0.00042005,50]
[394531608,1763671478805,250.380547,0.00042005,50]
[394531609,1763671479094,250.380547,0.00042005,50]
[394531610,1763671479400,250.380547,0.00042005,50]
[394531611,1763671479704,250.380547,0.00042005,50]
[394531612,1763671480022,250.380547,0.00042005,50]
[394531613,1763671480330,250.380547,0.00042005,50]
[394531614,1763671480613,250.380547,0.00042005,50]
[394531615,1763671480908,250.380547,0.00042005,50]
[394531616,1763671481224,250.380547,0.00042005,50]
[394531617,1763671481516,250.380547,0.00042005,50]
[394531618,1763671481809,250.380543,0.00042005,50]
[394531619,1763671484555,426.43191686,0.00035616,120]
[394531636,1763671565321,500.0,0.00042005,50]
[394531637,1763671565943,500.0,0.00042005,50]
[394531638,1763671566753,500.0,0.00042005,50]
[394531639,1763671601932,1000.0,0.00015744,2]
[394531640,1763671624799,500.0,0.00042005,50]
[394531641,1763671661352,1500.0,0.00015746,2]
[394531642,1763671751972,194.59887964,0.00035616,120]
[394531643,1763671759470,387.2,0.00015775,3]
[394531644,1763671759493,611.8,0.00015775,3]
[394531645,1763671783160,211.91605557,0.00042005,120]
[394531646,1763671797627,150.0,0.00015789,2]
[394531652,1763671821061,4540.73,0.00015816,2]
[394531656,1763671831552,-300.0,0.00016199,2]
[394531657,1763671831562,-300.0,0.00016199,2]
[394531658,1763671831572,-300.0,0.00016199,2]
[394531659,1763671831582,-1200.0,0.00016199,2]
[394531660,1763671831591,-150.0,0.000162,2]
[394531661,1763671831601,-150.0,0.000162,2]
[394531662,1763671831611,-150.0,0.000162,2]
[394531663,1763671831620,-150.0,0.000162,2]
[394531664,1763671831629,-54.99879302,0.000162,2]
[394531667,1763671831641,-95.00120698,0.000162,2]
[394531668,1763671831650,-150.0,0.000162,2]
[394531669,1763671831660,-151.48800402,0.000162,2]
[394531670,1763671831669,-150.0,0.000162,2]
[394531671,1763671831678,-150.0,0.000162,2]
[394531672,1763671831687,-150.0,0.000162,2]
[394531673,1763671831696,-1423.70296202,0.00016257,2]
[394531674,1763671831712,-2870.22703798,0.00016257,2]
[394531675,1763671831722,-1288.18,0.00016266,2]
[394531676,1763671831731,-2000.0,0.00016301,2]
[394531677,1763671831741,-300.0,0.00016301,2]
[394531678,1763671831750,-1000.0,0.00016301,2]
[394531679,1763671831759,-1000.0,0.00016301,2]
[394531680,1763671831768,-217.37,0.0001634,2]
[394531681,1763671831778,-1000.0,0.00016416,2]
[394531682,1763671831787,-13001.4781,0.00016416,2]
[394531683,1763671831796,-550.0,0.00016459,2]
[394531684,1763671831805,-1670.98992894,0.0001646,2]
[394531685,1763671831814,-164.11479545,0.0001646,2]
[394531686,1763671831823,-178.96114393,0.0001646,2]
[394531687,1763671831832,-151.0,0.00016506,2]
[394531688,1763671831841,-188.47639722,0.00016506,2]
[394531689,1763671831851,-1703.527,0.00016514,2]
[394531690,1763671831860,-171.346,0.00016514,2]
[394531691,1763671831869,-292.84500783,0.00016515,2]
[394531692,1763671831878,-500.0,0.00016515,2]
[394531693,1763671831887,-491.06225128,0.00016515,2]
[394531694,1763671831896,-500.0,0.00016515,2]
[394531695,1763671831906,-500.0,0.00016515,2]
[394531696,1763671831915,-500.0,0.00016515,2]
[394531697,1763671831929,-500.0,0.00016515,2]
[394531698,1763671831939,-500.0,0.00016515,2]
[394531699,1763671831948,-500.0,0.00016515,2]
[394531700,1763671831957,-500.0,0.00016515,2]
[394531701,1763671831967,-500.0,0.00016515,2]
[394531702,1763671831982,-962.2583,0.0001656,2]
[394531703,1763671831991,-501.14255158,0.00016573,2]
[394531704,1763671832001,-500.0,0.00016573,2]
[394531705,1763671832011,-500.0,0.00016573,2]
[394531706,1763671832021,-500.0,0.00016573,2]
[394531707,1763671832031,-500.0,0.00016573,2]
[394531708,1763671832040,-184.18282033,0.00016573,2]
[394531709,1763671832051,-500.0,0.00016573,2]
[394531710,1763671832063,-500.0,0.00016573,2]
[394531711,1763671832072,-500.0,0.00016573,2]
[394531712,1763671832082,-500.0,0.00016573,2]
[394531713,1763671832092,-343.44455927,0.00016573,2]